bitfinex/quotes_ETHUSD_20260202
["timestamp","ask_amount","ask_price","bid_price","bid_amount"]
[1769994987716,0.01733328,2253.3,2252.5,12.75214954]
[1769994988016,0.01733328,2253.4,2252.5,12.75214954]
[1769994988328,0.01733328,2253.1,2252.3,1.10997646]
[1769994988533,1.12645262,2254.1,2252.3,13.862126]
[1769994988756,0.01733328,2254.1,2252.3,14.86110482]
[1769994989124,0.01733328,2253.2,2252.3,14.86110482]
[1769994989430,0.01733328,2252.6,2251.7,12.75214954]
[1769994989629,0.01733328,2252.6,2251.5,1.11034835]
[1769994989630,0.01733328,2251.9,2251.5,1.11034835]
[1769994989836,0.01733328,2253.4,2251.5,13.86249789]
[1769994990041,0.01733328,2253.4,2251.6,12.75214954]
[1769994990351,0.01733328,2252.6,2251.6,12.75214954]
[1769994990550,0.01733328,2252.8,2252.7,0.001]
[1769994990751,0.01733328,2252.8,2251.6,12.75214954]
[1769994991055,1.1268,2253.4,2251.7,13.86242177]
[1769994991239,0.01733328,2252.7,2251.7,1.11027223]
[1769994991572,0.01733328,2252.7,2251.7,13.86242177]
[1769994991722,0.01733328,2253.4,2251.7,13.86242177]
[1769994991723,0.01733328,2253.8,2251.7,13.86242177]
[1769994991922,0.01733328,2253.8,2251.9,12.75214954]
[1769994992122,0.01733328,2253.8,2251.9,12.76948282]
[1769994992347,0.01733328,2253.8,2252.0,12.75214954]
[1769994992348,0.01733328,2253.4,2252.0,12.75214954]
[1769994992565,0.01733328,2253.4,2252.1,13.68214954]
[1769994992725,0.01733328,2253.2,2252.2,27.25214954]
[1769994992933,0.01733328,2253.4,2252.3,13.862126]
[1769994993229,0.01733328,2253.8,2252.3,13.862126]
[1769994993434,0.01733328,2253.3,2252.3,13.862126]
[1769994993630,0.01733328,2252.9,2252.3,13.862126]
[1769994993834,0.01733328,2252.9,2252.2,1.10999201]
[1769994993835,0.01733328,2252.6,2252.2,1.10999201]
[1769994994261,0.01733328,2252.5,2252.1,1.11003824]
[1769994994554,0.01733328,2252.8,2252.2,1.11001943]
[1769994994969,0.01733328,2252.9,2251.8,4.44086819]
[1769994995269,1.12666945,2253.6,2251.9,12.75214954]
[1769994995429,0.01733328,2253.6,2251.9,12.75214954]
[1769994995628,0.01733328,2252.9,2251.9,12.75214954]
[1769994996031,0.01733328,2253.6,2251.9,12.75214954]
[1769994996226,0.01733328,2253.3,2251.9,12.75214954]
[1769994996540,0.01733328,2253.6,2252.1,12.75214954]
[1769994996857,0.01733328,2253.6,2252.3,12.75214954]
[1769994996858,0.01733328,2253.4,2252.3,12.75214954]
[1769994997153,0.01733328,2254.2,2252.4,13.86207672]
[1769994997564,0.01733328,2254.8,2252.6,13.41222123]
[1769994997729,0.01733328,2254.8,2252.4,1.12726046]
[1769994997730,0.01733328,2254.4,2252.8,13.41222123]
[1769994997931,0.01733328,2254.8,2253.0,13.41222123]
[1769994998233,4.45137982,2255.3,2252.9,0.65045462]
[1769994998234,0.01733328,2255.9,2254.0,13.41222123]
[1769994998470,0.01733328,2256.2,2254.5,13.41222123]
[1769994998760,0.01733328,2256.3,2254.6,15.71043618]
[1769994998935,0.01733328,2256.1,2254.7,1.10879496]
[1769994999135,0.0011,2257.2,2255.0,13.41222123]
[1769994999459,0.0011,2257.2,2255.2,13.42955451]
[1769994999460,1.12600272,2257.2,2255.2,13.42955451]
[1769994999641,0.01733328,2256.9,2255.4,13.41222123]
[1769994999828,0.01733328,2256.4,2254.8,13.41222123]
[1769995000030,0.01733328,2256.3,2254.9,14.34222123]
[1769995000340,0.01733328,2255.8,2254.7,1.10879496]
[1769995000659,0.01733328,2255.3,2254.6,1.10880982]
[1769995000864,0.01733328,2256.4,2254.6,1.10880982]
[1769995001051,1.12538218,2256.3,2254.8,1.10874578]
[1769995001244,1.12539822,2256.2,2254.8,1.10874578]
[1769995001466,0.01733328,2256.2,2254.8,1.10874578]
[1769995001641,0.01733328,2256.2,2254.8,14.52096701]
[1769995001847,0.01733328,2256.2,2254.9,1.4642323]
[1769995002042,0.01733328,2256.6,2254.9,14.87645353]
[1769995002232,0.01733328,2256.9,2254.9,14.87645353]
[1769995002569,0.0011,2257.2,2255.9,13.41222123]
[1769995002737,0.0011,2257.7,2256.1,13.41222123]
[1769995003078,0.01733328,2258.0,2256.8,1.1077632]
[1769995003278,0.01733328,2257.8,2256.8,1.1077632]
[1769995003487,0.01733328,2257.2,2256.1,13.41222123]
[1769995003693,0.01733328,2256.9,2256.1,4.43237828]
[1769995003840,0.01733328,2256.7,2256.2,1.10802658]
[1769995004145,0.01733328,2256.7,2256.1,4.43223118]
[1769995004350,0.01733328,2256.7,2256.2,1.10805139]
[1769995004552,0.01733328,2256.0,2254.7,14.30396701]
[1769995004740,0.01733328,2256.1,2254.8,18.77716377]
[1769995004941,0.01733328,2256.2,2254.8,18.77716377]
[1769995005663,0.01733328,2256.1,2254.8,18.77716377]
[1769995006069,0.01733328,2256.3,2254.8,18.77716377]
[1769995006274,0.01733328,2256.0,2254.8,18.77716377]
[1769995006577,0.01733328,2256.2,2254.9,0.929]
[1769995006755,0.01733328,2256.0,2254.8,17.84716377]
[1769995007073,0.01733328,2256.4,2254.8,17.84716377]
[1769995007074,0.01733328,2257.3,2255.2,13.83228015]
[1769995007289,0.01733328,2257.4,2255.3,13.84961343]
[1769995007439,0.01733328,2257.5,2255.8,13.83228015]
[1769995007764,0.01733328,2257.5,2255.9,14.76128015]
[1769995007941,0.01733328,2257.2,2255.9,14.76128015]
[1769995008137,0.01733328,2257.3,2255.9,14.76128015]
[1769995008384,0.0011,2257.7,2255.9,14.76128015]
[1769995008743,0.0011,2257.9,2256.3,13.83228015]
[1769995008944,4.44368395,2259.2,2256.3,13.83228015]
[1769995008945,0.01733328,2259.5,2257.5,13.83228015]
[1769995009172,1e-08,2259.7,2257.8,13.83228015]
[1769995009441,0.01733328,2259.8,2257.8,13.84961343]
[1769995009667,0.01733328,2259.4,2257.8,13.83228015]
[1769995009855,0.01733328,2259.8,2257.9,14.46598838]
[1769995010059,0.01733328,2259.7,2257.9,14.46598838]
[1769995010264,0.01733328,2261.0,2258.2,13.83228015]
[1769995010470,0.01733328,2261.4,2259.3,13.83228015]
[1769995010774,0.01733328,2262.0,2259.8,13.84961343]
[1769995010974,0.01733328,2262.5,2260.5,13.83228015]
[1769995011175,0.01733328,2262.0,2260.8,13.83228015]
[1769995011342,0.01733328,2262.8,2260.8,14.46598838]
[1769995011545,0.01733328,2262.7,2260.8,14.46598838]
[1769995011798,0.01733328,2262.6,2260.8,14.46598838]
[1769995012072,0.01733328,2263.0,2260.8,14.46598838]
[1769995012377,0.1081147,2264.0,2262.5,13.83228015]
[1769995012562,0.01843328,2264.4,2262.7,13.83228015]
[1769995012563,0.0011,2264.4,2262.7,13.83228015]
[1769995012743,0.0011,2264.7,2263.4,16.11104799]
[1769995012946,0.0041242,2265.6,2264.5,13.83228015]
[1769995013243,0.01324474,2267.3,2265.5,12.93720445]
[1769995013453,0.01324474,2267.3,2265.6,0.929]
[1769995013454,0.01324474,2266.9,2265.6,0.929]
[1769995013671,0.01324474,2267.1,2265.6,0.929]
[1769995013870,1.11553507,2268.1,2265.6,2.31396134]
[1769995014079,1.10214698,2268.3,2265.9,26.78272934]
[1769995014319,0.01324474,2268.3,2266.2,13.84552489]
[1769995014459,0.30625759,2269.2,2267.0,13.83228015]
[1769995014646,12.95154919,2270.0,2269.6,0.01324474]
[1769995014647,0.0011,2270.0,2269.6,0.01324474]
[1769995014848,5.5292995,2272.4,2269.9,0.01324474]
[1769995014849,1.33085757,2271.8,2269.9,0.01324474]
[1769995015042,1.10015842,2272.4,2271.5,0.01324474]
[1769995015277,5.919128,2272.3,2270.6,4.40405659]
[1769995015449,13.256562,2272.2,2270.2,0.01324474]
[1769995015784,0.0011,2272.5,2271.1,0.01324474]
[1769995015971,0.0011,2272.5,2272.0,0.01324474]
[1769995016278,0.1081147,2273.0,2272.4,0.01324474]
[1769995016446,0.01324474,2272.6,2271.0,12.93720445]
[1769995016644,4.524791,2272.5,2270.5,12.95044919]
[1769995016844,0.01324474,2272.0,2270.1,4.40501323]
[1769995017069,0.01324474,2271.6,2270.2,13.83228015]
[1769995017384,0.01324474,2271.6,2268.6,13.83228015]
[1769995017385,0.01324474,2270.2,2268.6,13.83228015]
[1769995017545,0.01324474,2271.7,2269.2,13.83228015]
[1769995017743,7.315002,2271.3,2269.4,13.83228015]
[1769995017970,0.01324474,2271.7,2269.1,0.01324474]
[1769995017971,0.01324474,2271.1,2269.1,1.10174501]
[1769995018273,0.11564474,2271.7,2269.7,0.01324474]
[1769995018443,0.11564474,2271.5,2269.5,0.01324474]
[1769995018645,0.11564474,2271.5,2269.4,0.01324474]
[1769995018646,13.03960445,2271.3,2269.1,1.10173606]
[1769995018843,0.01324474,2270.8,2268.7,0.01324474]
[1769995019045,1.11442079,2270.3,2268.4,1.10209051]
[1769995019275,0.55323698,2270.2,2269.0,0.01324474]
[1769995019491,0.01324474,2270.6,2268.5,13.83228015]
[1769995019648,0.01324474,2269.9,2267.6,0.01324474]
[1769995019853,0.0011,2268.5,2266.9,26.7694846]
[1769995020058,0.0011,2268.5,2267.5,0.01324474]
[1769995020260,0.0011,2268.5,2267.1,0.01324474]
[1769995020261,0.0011,2268.5,2267.0,13.83228015]
[1769995020559,0.0011,2268.5,2267.7,1.10243168]
[1769995020758,0.0011,2268.5,2267.4,1.10257014]
[1769995020958,0.0011,2268.5,2266.5,0.01324474]
[1769995020959,0.0011,2268.5,2267.2,0.01324474]
[1769995021168,0.0011,2268.5,2266.7,0.01324474]
[1769995021169,0.0011,2268.5,2266.5,13.83228015]
[1769995021465,0.01324474,2269.0,2266.5,13.83228015]
[1769995021466,0.0011,2269.5,2267.6,0.01324474]
[1769995021766,0.0011,2269.5,2267.4,12.95044919]
[1769995021767,0.01324474,2270.4,2268.2,13.83228015]
[1769995021958,0.01324474,2270.0,2268.2,13.83228015]
[1769995022158,0.01324474,2269.4,2267.3,13.84552489]
[1769995022360,1.10093359,2270.8,2268.2,13.83228015]
[1769995022559,4.95922538,2271.0,2269.4,0.01324474]
[1769995022866,4.95922538,2271.0,2269.6,0.01324474]
[1769995023076,1.0999164,2272.9,2270.6,12.93720445]
[1769995023252,0.1081147,2273.0,2271.5,0.01324474]
[1769995023453,0.0011,2273.7,2272.1,15.1433591]
[1769995023674,0.0011,2273.7,2272.2,0.93989178]
[1769995023862,0.0011,2273.7,2272.3,0.01324474]
[1769995024050,0.0011,2273.7,2272.2,13.83228015]
[1769995024249,1.11226215,2274.8,2272.7,0.01324474]
[1769995024484,0.10345167,2275.1,2272.7,0.01324474]
[1769995024485,0.09020693,2275.1,2273.6,12.93720445]
[1769995024663,0.01324474,2275.0,2273.2,13.83228015]
[1769995024864,1.18906356,2275.1,2273.7,0.01324474]
[1769995025066,0.09020693,2275.1,2273.4,13.83228015]
[1769995025265,0.09020693,2275.1,2273.1,0.11564474]
[1769995025266,4.39356469,2276.1,2274.2,0.01324474]
[1769995025600,4.39356469,2276.1,2273.8,0.01324474]
[1769995025601,0.01324474,2275.6,2273.5,1.03867067]
[1769995025794,0.01324474,2274.9,2272.0,0.01324474]
[1769995025954,4.6378,2274.8,2272.6,0.01324474]
[1769995026155,0.1024,2274.6,2272.6,0.01324474]
[1769995026384,0.1024,2274.6,2273.0,0.01324474]
[1769995026578,0.01324474,2275.1,2272.9,1.0999114]
[1769995026778,12.95044919,2275.7,2272.9,1.0999114]
[1769995026779,4.39356469,2276.1,2273.8,0.01324474]
[1769995027092,1.0985148,2275.8,2274.0,0.01324474]
[1769995027257,0.01324474,2276.1,2274.3,0.01324474]
[1769995027458,0.01324474,2277.2,2275.0,12.95044919]
[1769995027685,12.95044919,2278.0,2275.9,0.01324474]
[1769995027686,0.22970832,2277.0,2275.9,0.01324474]
[1769995027893,2.76010274,2276.9,2275.0,13.49427868]
[1769995028184,0.01324474,2275.6,2274.0,1.09937295]
[1769995028390,0.01324474,2275.6,2273.3,13.50752342]
[1769995028391,0.01324474,2275.0,2273.3,13.49427868]
[1769995028578,3.45402874,2275.5,2273.3,13.49427868]
[1769995028579,0.1024,2276.0,2273.8,1.09944694]
[1769995028780,0.01324474,2275.3,2274.0,1.09938131]
[1769995028968,0.01324474,2275.2,2273.1,13.50752342]
[1769995029282,0.01324474,2275.6,2273.6,0.01324474]
[1769995029495,0.22976821,2276.7,2274.5,12.95044919]
[1769995029669,0.1081147,2277.4,2275.9,0.01324474]
[1769995029867,0.1081147,2277.4,2275.9,12.93720445]
[1769995030095,0.01324474,2276.8,2274.7,12.93720445]
[1769995030295,0.01324474,2275.6,2273.3,4.41205209]
[1769995030500,0.01324474,2276.0,2273.3,4.41205209]
[1769995030501,0.01324474,2275.9,2274.7,6.579182]
[1769995030701,0.01324474,2276.3,2274.7,6.579182]
[1769995030702,0.01324474,2276.9,2274.7,0.6579182]
[1769995031000,14.88341446,2277.4,2276.6,1.09812878]
[1769995031001,0.1081147,2277.4,2276.6,1.09812878]
[1769995031169,1.20586984,2277.4,2275.6,4.39440625]
[1769995031369,0.0011,2278.2,2276.7,12.93720445]
[1769995031697,1.09848805,2278.2,2276.8,6.579182]
[1769995031869,1.09846495,2278.2,2276.3,0.01324474]
[1769995032068,1.09846495,2278.2,2274.8,2.11593083]
[1769995032069,0.01324474,2277.6,2274.7,0.6579182]
[1769995032368,0.01324474,2277.6,2275.6,6.579182]
[1769995032369,0.01324474,2277.4,2275.6,6.579182]
[1769995032700,0.55009909,2278.1,2276.1,1.09834925]
[1769995032903,0.0011,2278.2,2278.0,6.579182]
[1769995033068,0.01434474,2279.4,2278.6,6.579182]
[1769995033069,0.0011,2279.4,2278.6,6.579182]
[1769995033268,1.18672688,2280.0,2278.1,1.09740573]
[1769995033496,1.18672688,2280.0,2278.2,0.54870287]
[1769995033800,1.18672688,2280.0,2277.8,0.01324474]
[1769995033801,0.01324474,2279.3,2277.4,4.39081637]
[1769995033999,0.0011,2280.5,2278.7,12.93720445]
[1769995034176,0.0011,2280.5,2279.7,6.579182]
[1769995034372,0.0011,2280.5,2278.9,0.01324474]
[1769995034373,1.09735775,2280.5,2279.3,0.01324474]
[1769995034573,1.09735775,2280.5,2280.1,0.01324474]
[1769995034770,2.938787,2280.4,2278.5,0.01324474]
[1769995035078,0.0011,2280.5,2280.0,0.01324474]
[1769995035267,0.0011,2280.5,2279.7,0.01324474]
[1769995035468,0.0011,2280.5,2278.6,0.01324474]
[1769995035702,0.0011,2280.5,2279.5,0.01324474]
[1769995036007,2.376497,2280.4,2278.1,0.01324474]
[1769995036172,13.90204906,2280.3,2277.4,0.922]
[1769995036373,0.2377597,2280.3,2279.2,1.09683653]
[1769995036574,0.0011,2280.5,2279.9,0.01324474]
[1769995036777,1.09562625,2281.8,2280.4,0.01324474]
[1769995036988,1.09562625,2281.8,2280.0,1.10973461]
[1769995036989,13.66428936,2281.5,2278.7,12.93720445]
[1769995037187,0.01324474,2280.9,2278.4,12.95044919]
[1769995037416,0.01324474,2280.6,2278.2,1.11058395]
[1769995037710,0.01324474,2280.6,2278.6,1.09713762]
[1769995037880,0.01324474,2280.2,2277.9,0.01324474]
[1769995038077,0.1024,2280.0,2278.1,0.01324474]
[1769995038280,0.01324474,2279.1,2276.8,0.01324474]
[1769995038590,0.01324474,2278.6,2276.5,1.09815032]
[1769995038775,1.38064236,2278.6,2276.7,12.95044919]
[1769995039113,1.09682797,2279.3,2277.8,0.01324474]
[1769995039304,1.09682797,2279.3,2277.4,0.01324474]
[1769995039479,3.463732,2279.2,2277.3,0.01324474]
[1769995039682,3.463732,2279.2,2276.7,13.45044919]
[1769995039683,0.01324474,2278.9,2276.7,0.01324474]
[1769995039989,13.6775341,2278.9,2277.1,4.39140353]
[1769995040292,0.01324474,2278.4,2276.4,4.39286204]
[1769995040492,0.01324474,2278.6,2277.2,1.097828]
[1769995040705,0.01324474,2278.0,2275.8,0.01324474]
[1769995040874,0.01324474,2277.8,2275.8,0.01324474]
[1769995041079,1.09753158,2277.9,2276.0,4.39352699]
[1769995041278,1.09753158,2277.9,2276.1,0.01324474]
[1769995041499,0.01324474,2277.8,2275.9,1.0984478]
[1769995041817,0.45738047,2279.1,2277.3,12.93720445]
[1769995041982,0.01324474,2279.3,2277.8,12.93720445]
[1769995042179,0.22942965,2279.3,2278.0,0.01324474]
[1769995042408,0.22942965,2279.3,2277.6,2.14741394]
[1769995042409,0.01324474,2280.0,2277.6,0.01324474]
[1769995042680,13.66428936,2280.1,2278.2,0.01324474]
[1769995042987,14.75996363,2281.7,2279.4,0.01324474]
[1769995043172,14.75996363,2281.7,2280.1,0.02633668]
[1769995043173,13.66428936,2281.4,2280.1,0.02633668]
[1769995043373,13.66428936,2281.4,2278.8,17.32470883]
[1769995043374,0.01324474,2280.2,2277.8,12.95044919]
[1769995043603,0.01324474,2280.3,2279.1,1.09690433]
[1769995043774,0.01324474,2280.3,2278.9,1.09701282]
[1769995043975,0.01324474,2279.9,2278.3,4.38922228]
[1769995044173,13.6775341,2279.5,2277.9,1.02939936]
[1769995044380,0.01324474,2277.9,2276.3,1.09824172]
[1769995044711,0.01324474,2277.3,2275.5,4.3945788]
[1769995044881,0.01324474,2277.7,2275.0,0.01324474]
[1769995044882,0.0011,2278.3,2275.2,12.95044919]
[1769995045082,1.11089138,2277.6,2275.8,1.0985148]
[1769995045380,1.11089138,2277.6,2274.4,4.39665118]
[1769995045381,0.01324474,2275.9,2274.4,4.39665118]
[1769995045581,0.01324474,2275.4,2273.9,4.39759518]
[1769995045780,0.11564474,2276.4,2274.9,1.09892557]
[1769995046107,0.01324474,2275.6,2274.9,1.09894404]
[1769995046306,0.01324474,2275.6,2274.9,1.09894241]
[1769995046607,0.01324474,2275.5,2274.8,1.09898252]
[1769995046816,13.6775341,2276.9,2274.9,1.09894885]
[1769995047019,0.01324474,2276.3,2275.0,0.54947465]
[1769995047242,0.01324474,2276.1,2274.3,4.39686909]
[1769995047514,0.01324474,2275.8,2274.0,0.43975952]
[1769995047701,0.01324474,2276.3,2275.0,1.0988951]
[1769995047901,1.0982267,2276.4,2274.5,4.39646499]
[1769995048210,0.01324474,2276.0,2274.2,4.39707638]
[1769995048411,0.55043725,2276.3,2274.3,12.93720445]
[1769995048611,0.01324474,2276.1,2274.3,12.93720445]
[1769995048816,0.1024,2276.6,2274.8,12.93720445]
[1769995049002,0.01324474,2276.2,2275.5,12.93720445]
[1769995049202,0.01324474,2278.0,2276.0,12.93720445]
[1769995049415,2.20071674,2277.8,2275.7,0.01324474]
[1769995049614,2.20071674,2277.8,2275.6,1.11185609]
[1769995049615,0.01324474,2277.0,2275.6,1.09861135]
[1769995049802,0.01324474,2277.1,2275.6,1.09861135]
[1769995049992,0.01324474,2277.3,2275.6,1.09861135]
[1769995050193,0.01324474,2277.4,2275.6,1.09861135]
[1769995050393,0.01324474,2277.5,2275.6,1.09861135]
[1769995050729,0.01324474,2277.3,2275.6,1.09861135]
[1769995050926,0.01324474,2277.4,2275.6,1.09861135]
[1769995051225,0.01324474,2277.4,2274.9,4.39574513]
[1769995051226,0.01324474,2276.7,2274.9,4.39574513]
[1769995051543,0.01324474,2276.5,2274.9,4.39574513]
[1769995051702,0.01324474,2276.6,2274.9,4.39574513]
[1769995052018,0.01324474,2276.4,2274.9,4.39574513]
[1769995052236,0.01324474,2276.6,2274.9,4.39574513]
[1769995052401,0.01324474,2277.8,2275.9,0.01324474]
[1769995052593,0.0011,2278.3,2276.8,0.01324474]
[1769995052794,0.0011,2278.3,2276.8,12.93720445]
[1769995053127,0.0011,2278.3,2276.2,1.09832176]
[1769995053128,1.11069864,2278.0,2276.2,1.09832176]
[1769995053422,1.09845358,2278.3,2276.6,0.01324474]
[1769995053623,1.09845358,2278.3,2276.3,0.54916088]
[1769995053624,3.625537,2278.2,2276.3,0.54916088]
[1769995053804,0.01324474,2278.0,2276.1,1.09833718]
[1769995054000,0.01324474,2277.7,2276.1,1.09836825]
[1769995054223,1.74319606,2278.0,2276.1,1.09836825]
[1769995054524,0.01324474,2278.2,2276.1,1.09836825]
[1769995054713,0.01324474,2277.5,2276.1,1.09836825]
[1769995055025,0.01324474,2277.5,2276.1,1.09834199]
[1769995055323,0.01324474,2277.9,2276.0,4.39362896]
[1769995055324,1.09736638,2278.2,2276.0,12.95044919]
[1769995055505,0.01324474,2277.6,2275.8,4.40672481]
[1769995055699,0.01324474,2277.7,2275.8,4.40672481]
[1769995055700,0.01324474,2277.7,2275.9,0.88134496]
[1769995055901,0.01324474,2277.2,2275.6,1.09861135]
[1769995056129,0.01324474,2277.2,2275.4,4.39479996]
[1769995056130,13.66428936,2276.7,2275.5,1.09863392]
[1769995056306,13.66428936,2276.7,2274.8,4.39584903]
[1769995056307,0.01324474,2276.3,2274.8,4.39584903]
[1769995056508,0.01324474,2276.3,2275.5,1.09865963]
[1769995056509,0.01324474,2276.2,2275.5,1.09865963]
[1769995056726,0.01324474,2276.3,2275.5,1.09865963]
[1769995056895,0.01324474,2276.4,2275.5,1.09865963]
[1769995057096,0.01324474,2276.4,2274.9,4.39564515]
[1769995057337,0.01324474,2276.6,2275.0,0.54946429]
[1769995057603,0.01324474,2276.6,2274.8,1.09899771]
[1769995057604,0.01324474,2275.9,2274.8,1.09899771]
[1769995058204,0.01324474,2275.8,2274.8,1.09899771]
[1769995058404,0.01324474,2275.5,2274.8,1.09899771]
[1769995058606,0.01324474,2275.9,2274.9,0.001]
[1769995058922,0.11564474,2276.7,2274.9,0.001]
[1769995059107,0.01324474,2276.3,2275.0,1.09890109]
[1769995059301,0.01324474,2276.2,2275.0,1.09890109]
[1769995059517,0.01324474,2276.2,2274.9,1.09991499]
[1769995059518,0.01324474,2275.9,2274.9,1.09991499]
[1769995059720,0.01324474,2276.2,2274.9,1.09991499]
[1769995059932,0.01324474,2277.2,2275.1,12.93720445]
[1769995060137,1.11073072,2278.0,2275.6,12.95044919]
[1769995060313,0.01324474,2277.5,2275.6,12.95044919]
[1769995060514,0.01434474,2278.3,2275.5,0.01324474]
[1769995060714,0.0011,2278.3,2277.0,12.93720445]
[1769995061016,0.0011,2278.5,2277.1,0.91261785]
[1769995061217,0.0011,2278.5,2276.2,12.95044919]
[1769995061218,0.01324474,2278.2,2276.2,12.95044919]
[1769995061413,0.01324474,2277.4,2276.1,4.39333885]
[1769995061644,0.01324474,2276.8,2274.9,0.001]
[1769995061828,0.01324474,2276.7,2275.7,1.09855025]
[1769995062028,0.01324474,2276.7,2274.9,0.001]
[1769995062029,0.01324474,2276.1,2274.9,0.001]
[1769995062217,0.01324474,2276.4,2275.5,1.09864995]
[1769995062428,0.01324474,2276.4,2275.4,1.09867865]
[1769995062616,0.01324474,2276.4,2274.9,0.001]
[1769995062967,0.01324474,2277.1,2275.7,1.0985543]
[1769995063121,0.01324474,2276.5,2275.6,1.09858263]
[1769995063323,0.01324474,2276.1,2275.7,1.09851818]
[1769995063525,0.01324474,2276.5,2275.7,1.09851818]
[1769995063526,0.01324474,2278.7,2276.3,13.8391343]
[1769995063748,2.83102814,2279.3,2276.0,14.85621788]
[1769995063749,0.01324474,2279.2,2278.1,12.7193354]
[1769995063932,0.0011,2279.5,2278.2,1.27193354]
[1769995064132,0.0011,2279.5,2277.2,0.2335703]
[1769995064133,1.09786566,2279.5,2278.6,0.01324474]
[1769995064502,0.0011,2279.5,2277.8,0.01324474]
[1769995064620,0.0011,2279.5,2278.0,0.01324474]
[1769995064621,1.09783944,2279.5,2278.0,0.01324474]
[1769995064819,0.54847664,2279.4,2278.0,0.01324474]
[1769995065059,0.54847664,2279.4,2278.2,0.01324474]
[1769995065260,1.09682797,2279.3,2278.3,0.01324474]
[1769995065481,1.09682797,2279.3,2277.4,4.40416581]
[1769995065482,3.037402,2279.2,2277.4,4.40416581]
[1769995065759,2.286398,2279.2,2277.1,0.01324474]
[1769995065974,1.09682797,2279.3,2277.6,0.01324474]
[1769995066118,4.38841189,2279.5,2277.6,0.01324474]
[1769995066119,0.0011,2279.5,2278.5,0.01324474]
[1769995066324,0.0011,2279.5,2278.9,0.01324474]
[1769995066823,0.0011,2279.5,2278.5,0.01324474]
[1769995066824,1.09787008,2279.5,2278.1,1.1106476]
[1769995067052,1.0978442,2279.5,2278.5,0.01324474]
[1769995067368,0.0011,2279.5,2278.0,1.09743801]
[1769995067570,0.0011,2279.5,2277.3,0.01324474]
[1769995067571,5.447227,2279.4,2277.4,0.01324474]
[1769995067742,0.5448327,2279.3,2277.9,1.0974829]
[1769995067947,0.01324474,2278.8,2277.3,1.0977869]
[1769995068172,0.01324474,2278.9,2276.9,0.01324474]
[1769995068343,0.5448327,2279.3,2278.2,1.09735292]
[1769995068539,0.0011,2279.5,2278.2,1.09735292]
[1769995068758,0.0011,2279.5,2277.6,4.39057704]
[1769995068759,0.01324474,2279.4,2277.6,4.39057704]
[1769995068991,13.91011639,2279.8,2277.6,4.39057704]
[1769995068992,2.26062226,2281.8,2279.2,1.17720456]
[1769995069209,2.26062226,2281.8,2279.1,12.7193354]
[1769995069210,3.76748701,2282.9,2282.1,7.39357692]
[1769995069352,10.02758448,2283.6,2281.8,1.09562625]
[1769995069353,14.0,2284.2,2282.3,7.393577]
[1769995069552,0.30778743,2284.9,2283.0,7.40682174]
[1769995069757,16.204593,2284.8,2283.3,0.01324474]
[1769995069961,14.0,2284.7,2283.1,0.01324474]
[1769995070191,14.0,2284.7,2283.6,0.01324474]
[1769995070391,0.09020693,2285.0,2284.0,0.01324474]
[1769995070682,2.204593,2284.9,2282.3,0.24681504]
[1769995070880,2.98005817,2284.9,2283.4,0.01324474]
[1769995071093,2.204593,2284.8,2283.1,0.01324474]
[1769995071385,0.01324474,2284.5,2282.0,0.93324474]
[1769995071599,15.09423556,2284.7,2283.3,0.01324474]
[1769995071877,2.17022603,2284.6,2283.4,0.01324474]
[1769995072086,1.86960928,2284.9,2282.2,4.38096907]
[1769995072254,1.09414411,2284.9,2283.4,0.01324474]
[1769995072585,2.204593,2284.8,2282.5,4.39421381]
[1769995072794,0.1024,2284.5,2282.6,1.09521186]
[1769995072943,0.1024,2284.3,2282.7,0.01324474]
[1769995073154,2.157055,2284.2,2282.8,1.09514631]
[1769995073446,1.09413978,2284.9,2283.3,0.01324474]
[1769995073647,1.09413978,2284.9,2283.4,0.01324474]
[1769995073847,1.09413978,2284.9,2283.6,0.01324474]
[1769995074084,1.18431716,2285.0,2284.1,0.01324474]
[1769995074291,0.09020693,2285.0,2284.3,0.01324474]
[1769995074495,0.09020693,2285.0,2284.2,0.01324474]
[1769995074700,0.09020693,2285.0,2284.3,0.01324474]
[1769995074866,0.09020693,2285.0,2284.6,0.01324474]
[1769995075064,0.1081147,2286.3,2284.8,0.01324474]
[1769995075409,2.204593,2286.2,2284.7,1.09421512]
[1769995075577,2.204593,2286.2,2284.4,0.01324474]
[1769995075777,2.204593,2286.2,2283.4,0.01324474]
[1769995075778,0.01324474,2285.7,2283.7,0.01324474]
[1769995076000,0.1024,2285.5,2283.5,0.01324474]
[1769995076166,0.01324474,2285.0,2283.6,1.09472724]
[1769995076362,0.01324474,2285.2,2282.8,0.56346684]
[1769995076363,0.1024,2284.8,2282.8,0.56346684]
[1769995076567,0.1024,2284.8,2282.1,12.7193354]
[1769995076568,0.11564474,2284.6,2282.1,12.7193354]
[1769995076764,0.32524825,2285.5,2284.8,0.053282]
[1769995076969,0.1081147,2286.3,2285.7,0.053282]
[1769995077171,1.09264405,2288.1,2287.0,0.01324474]
[1769995077373,14.0,2288.2,2286.7,1.09327852]
[1769995077690,1.10562656,2288.6,2286.8,0.54663926]
[1769995077865,0.01324474,2288.3,2286.3,0.01324474]
[1769995078066,0.01324474,2287.5,2285.3,0.01324474]
[1769995078269,0.919,2287.5,2285.7,0.01324474]
[1769995078462,14.01324474,2288.2,2285.6,12.7193354]
[1769995078463,14.0,2288.2,2285.6,12.7193354]
[1769995078663,14.0,2288.2,2285.7,1.27193354]
[1769995078664,0.01324474,2287.7,2285.7,1.27193354]
[1769995078895,0.1024,2287.0,2284.9,0.01324474]
[1769995079072,0.11564474,2286.8,2284.8,1.09418344]
[1769995079275,1.09303952,2287.2,2285.3,0.01324474]
[1769995079474,1.09303952,2287.2,2286.0,0.01324474]
[1769995079662,1.09303952,2287.2,2285.0,12.73258014]
[1769995079663,0.1024,2287.1,2285.0,12.73258014]
[1769995079869,0.1024,2286.9,2285.0,0.01324474]
[1769995080198,0.1024,2286.7,2284.8,1.09416891]
[1769995080400,14.0,2287.1,2284.9,0.01324474]
[1769995080601,14.1024,2286.9,2284.8,0.01324474]
[1769995080800,0.01324474,2286.5,2284.4,1.0943487]
[1769995080988,0.11564474,2286.3,2284.3,4.39081035]
[1769995081301,0.01324474,2285.6,2283.3,0.01324474]
[1769995081521,0.01324474,2285.6,2282.7,0.01324474]
[1769995081522,0.01324474,2284.3,2282.1,4.39512835]
[1769995081805,0.01324474,2284.1,2282.2,0.44083731]
[1769995082005,0.01324474,2284.5,2282.2,0.44083731]
[1769995082006,14.0,2284.7,2282.6,0.01324474]
[1769995082189,14.0,2284.7,2283.0,0.01324474]
[1769995082368,4.38808068,2285.9,2283.0,0.01324474]
[1769995082369,1.09337415,2286.5,2284.2,0.01324474]
[1769995082570,14.0,2287.5,2285.3,0.01324474]
[1769995082777,0.01324474,2287.1,2284.9,0.01324474]
[1769995082985,0.01324474,2286.6,2283.8,0.11564474]
[1769995083229,2.16455574,2287.0,2283.8,0.11564474]
[1769995083230,0.01324474,2287.7,2285.2,1.10724088]